[Event "MCCT Chessable Masters 2022"]
[Site "Online"]
[Date "2022.05.16"]
[Round "3.1"]
[White "Grandelius, Nils"]
[Black "Carlsen, Magnus"]
[Result "0-1"]
[ECO "B22"]
[WhiteElo "2635"]
[BlackElo "2864"]
[Annotator "TA"]
[PlyCount "60"]
[EventDate "2022.05.19"]
[EventType "tourn"]
[EventCountry "NET"]
[SourceTitle "playchess.com"]
[Source "ChessBase"]
[SourceQuality "1"]
[TimeControl "900+10"]

{[%evp 9,60,18,31,32,39,0,-3,-24,-28,-72,-64,-107,-68,-211,-200,-195,-189,-184,-187,-153,-128,-429,-15,-10,0,0,0,0,25,36,49,11,13,0,4,0,0,-35,-44,-161,-144,-256,-277,-274,-245,-279,-270,-382,-383,-663,-655,-646,-643]} 1. e4 {[%emt 0:00:00]} c5 {[%emt 0:00:00]} 2. c3 {[%emt 0:00:04][%cal Bc2c3,Bc3c4][%mdl 32]} d5 {[%emt 0:00:19]} 3. exd5 {[%emt 0:00:03]} Nf6 {[%emt 0:00:09]} 4. Bb5+ {[%emt 0:00:20]} Nbd7 {[%emt 0:00:03]} 5. c4 {[%emt 0:00:52]} a6 {[%emt 0:00:01]} 6. Bxd7+ {[%emt 0:00:01] B22: Sicilian: 2 c3.} Qxd7 {[%emt 0:00:25]} ({Weaker is} 6... Kxd7 7. Nc3 $16) 7. d4 {[%emt 0:03:52]} e6 {[%emt 0:00:34][%cal Be7e6,Be6d5,Bd5c4][%mdl 32] [#]} 8. Be3 $146 {[%emt 0:00:23] The position is equal.} ({Predecessor:} 8. Nf3 exd5 9. O-O dxc4 10. Qe2+ Be7 11. dxc5 O-O 12. Qxc4 Qd5 13. Qxd5 Nxd5 14. Rd1 {0-1 (39) Zumsande,M (2432)-Berg,E (2555) Germany 2015}) 8... exd5 {[%emt 0:00:21]} 9. dxc5 {[%emt 0:00:03]} dxc4 {[%emt 0:00:00]} 10. Na3 {[%emt 0:00:15]} Nd5 {[%emt 0:01:08][%cal Bf6d5,Bd5f4,Bf4e6,Be6c5][%mdl 32]} 11. Bd4 {[%emt 0:02:25] [#]} (11. Nxc4 $15 Nxe3 12. Nxe3) 11... Nf4 $1 $19 {[%emt 0:01:38]} 12. Kf1 {[%emt 0:00:26]} Qd5 {[%emt 0:00:14][%csl LRc5,LRg2]} 13. Nf3 {[%emt 0:00:32]} Bf5 {[%emt 0:00:13] Active counter play!} 14. Qa4+ {[%emt 0:00:20]} Bd7 {[%emt 0:02:37]} 15. Qb4 {[%emt 0:01:16][%mdl 8192] [#]} (15. Qc2 $17) 15... b6 $2 {[%emt 0:01:58]} (15... Bh3 $1 $19 {[%mdl 512]} 16. Qa4+ (16. Re1+ $2 Be7 $19) 16... Kd8) 16. Re1+ $11 {[%emt 0:00:32]} Ne6 {[%emt 0:00:06]} 17. Qxb6 {[%emt 0:00:15]} f6 {[%emt 0:00:18]} 18. Nc2 {[%emt 0:00:36]} c3 {[%emt 0:03:07]} (18... Kf7 $5 {[%cal Re6d4]}) 19. bxc3 {[%emt 0:01:06] Strongly threatening Nb4.} Kf7 {[%emt 0:00:03][%cal Rf8c5]} 20. Ne3 {[%emt 0:00:37]} Qc6 {[%emt 0:00:05]} 21. h3 {[%emt 0:02:29]} Nxc5 {[%emt 0:00:27]} 22. Qxc6 {[%emt 0:00:45]} (22. Qb1 {is more complex.} Bd6 23. Bxc5 Bxc5 24. Kg1) 22... Bxc6 {[%emt 0:00:01]} 23. Ke2 {[%emt 0:00:42]} Ne6 {[%emt 0:00:15]} 24. g3 {[%emt 0:00:38]} (24. Ra1 $15) 24... Nxd4+ $19 {[%emt 0:00:41]} 25. cxd4 {[%emt 0:00:02]} (25. Nxd4 $17 Bxh1 26. Rxh1) 25... Bb5+ {[%emt 0:00:01]} 26. Kd1 {[%emt 0:00:05]} Bb4 {[%emt 0:00:04] Threatens to win with ...Rac8.} 27. Nd2 {[%emt 0:00:26]} Rac8 {[%emt 0:00:13] White must now prevent ...Rc3.} 28. Nd5 {[%emt 0:00:23]} (28. Nc2 {was necessary.} Ba4 29. Nb3 Bxe1 30. Rxe1) 28... Ba4+ {[%emt 0:00:11] This bishop pair is nice.} 29. Ke2 $2 {[%emt 0:00:01]} (29. Nb3 Bxe1 30. Rxe1) 29... Rhe8+ {[%emt 0:00:03]} 30. Ne3 {[%emt 0:00:30]} Rc2 {[%emt 0:00:10] Weighted Error Value: White=0.74/Black=0.38} 0-1

[Event "MCCT Chessable Masters 2022"]
[Site "Online"]
[Date "2022.05.16"]
[Round "3.2"]
[White "Praggnanandhaa R"]
[Black "Tari, Aryan"]
[Result "1-0"]
[ECO "C65"]
[WhiteElo "2642"]
[BlackElo "2654"]
[Annotator "TA"]
[PlyCount "71"]
[EventDate "2022.05.19"]
[EventType "tourn"]
[EventCountry "NET"]
[SourceTitle "playchess.com"]
[Source "ChessBase"]
[SourceQuality "1"]
[TimeControl "900+10"]

{[%evp 9,71,16,14,14,22,-12,0,0,10,-18,-10,-14,8,0,32,19,31,20,34,53,37,44,43,24,65,60,99,97,104,108,120,118,107,110,116,112,139,141,181,174,175,162,207,215,183,194,468,409,400,384,624,617,690,701,678,659,712,691,774,751,934,921,955,939]} 1. e4 {[%emt 0:00:00]} e5 {[%emt 0:00:00]} 2. Nf3 {[%emt 0:00:05]} Nc6 {[%emt 0:00:01]} 3. Bb5 {[%emt 0:00:02]} Nf6 {[%emt 0:00:02]} 4. d3 {[%emt 0:00:01]} Bc5 {[%emt 0:00:02]} 5. c3 {[%emt 0:00:08]} O-O {[%emt 0:00:02]} 6. O-O {[%emt 0:00:02] C65: Ruy Lopez: Berlin Defence (3...Nf6), unusual lines and 4 0-0 Bc5.} d5 {[%emt 0:00:01]} 7. Qe2 {[%emt 0:00:04]} dxe4 {[%emt 0:01:02]} 8. dxe4 {[%emt 0:00:02] The position is equal.} a5 {[%emt 0:00:17]} 9. Bg5 {[%emt 0:00:25]} Qe7 {[%emt 0:00:32] [#]} 10. Bh4 $146 {[%emt 0:02:25]} ({Predecessor:} 10. Nbd2 h6 11. Bh4 Nb8 12. Ba4 c6 13. Bb3 a4 14. Bc2 Nbd7 15. b4 Bd6 16. Nc4 {0-1 (44) Hou,Y (2658)-Lei,T (2505) Chess.com INT 2021}) 10... Nb8 {[%emt 0:00:32]} 11. Nbd2 {[%emt 0:00:17]} c6 {[%emt 0:01:22]} 12. Bd3 {[%emt 0:00:16]} Nbd7 {[%emt 0:01:17]} 13. Nc4 {[%emt 0:00:27]} b5 {[%emt 0:00:48]} 14. Ne3 {[%emt 0:00:05]} Bxe3 {[%emt 0:00:01]} 15. Qxe3 {[%emt 0:00:08]} a4 {[%emt 0:01:31]} 16. Rfd1 {[%emt 0:00:43]} Bb7 {[%emt 0:00:39]} 17. Rd2 {[%emt 0:01:58]} Rfd8 {[%emt 0:01:44] White stays focused until the end.} 18. Rad1 {[%emt 0:00:07]} Nf8 {[%emt 0:00:33]} 19. Qb6 {[%emt 0:01:28]} Ra6 {[%emt 0:00:30]} 20. Bxf6 {[%emt 0:00:29]} gxf6 {[%emt 0:00:02]} 21. Qe3 {[%emt 0:00:04]} Ng6 {[%emt 0:00:17] Inhibits Nh4.} 22. h4 {[%emt 0:01:15][%cal Bh2h4,Bh4h5][%mdl 32]} Raa8 {[%emt 0:01:06] [#]} 23. g3 $1 {[%emt 0:02:13]} Bc8 {[%emt 0:00:10]} 24. h5 {[%emt 0:00:08]} Nf8 {[%emt 0:00:06] [#]} 25. Nh4 $1 {[%emt 0:00:50]} Be6 {[%emt 0:00:32]} 26. Nf5 {[%emt 0:00:30]} Bxf5 {[%emt 0:02:00]} 27. exf5 {[%emt 0:00:00] Black must now prevent h6.} Rd6 $2 {[%emt 0:00:43]} (27... a3 28. b4 Qc7) 28. Be4 {[%emt 0:00:23]} Rxd2 {[%emt 0:00:16]} 29. Qxd2 {[%emt 0:00:16]} ({Resist} 29. Rxd2 Qc7 30. h6 Nd7 $18) 29... Rc8 $2 {[%emt 0:00:34]} (29... h6 30. Bxc6 Rc8) 30. h6 $18 {[%emt 0:00:27] White is clearly winning.} Kh8 {[%emt 0:01:03]} 31. Qd6 {[%emt 0:00:27]} Qxd6 {[%emt 0:00:04]} 32. Rxd6 {[%emt 0:00:00]} c5 {[%emt 0:00:00]} 33. Bc6 {[%emt 0:00:25]} b4 {[%emt 0:00:32]} 34. Bxa4 {[%emt 0:00:26]} bxc3 {[%emt 0:00:36]} 35. bxc3 {[%emt 0:00:02]} c4 {[%emt 0:00:12]} 36. Bb5 {[%emt 0:00:13] Weighted Error Value: White=0.06 (flawless) /Black=0.37} 1-0

[Event "MCCT Chessable Masters 2022"]
[Site "Online"]
[Date "2022.05.16"]
[Round "3.3"]
[White "Harikrishna, Pentala"]
[Black "Giri, Anish"]
[Result "1/2-1/2"]
[ECO "A48"]
[WhiteElo "2705"]
[BlackElo "2761"]
[Annotator "TA"]
[PlyCount "139"]
[EventDate "2022.05.19"]
[EventType "tourn"]
[EventCountry "NET"]
[SourceTitle "playchess.com"]
[Source "ChessBase"]
[SourceQuality "1"]
[TimeControl "900+10"]

{[%evp 17,139,-5,-8,-23,-8,-12,18,13,25,0,0,-39,-30,-31,-32,-43,-43,-82,-83,-79,-80,-79,-77,-85,-77,-81,-68,-98,-91,-129,-106,-169,-168,-164,-130,-169,-169,-169,-169,-169,-160,-171,-171,-171,-171,-171,-171,-171,-171,-171,-171,-171,-171,-171,-171,-171,0,-177,-170,-170,-170,-170,-170,-170,0,-170,-170,-170,-170,-170,-158,-158,-158,-160,-158,-158,-158,-175,-164,-164,-133,-133,-133,-160,-56,-203,-207,-159,-131,-131,-103,-103,-103,-103,-103,-103,-103,-103,-61,-62,-44,-62,-62,-122,-131,-114,0,0,0,0,0,0,0,0,0,0,0,0,0,0,0,0,0,0]} 1. d4 {[%emt 0:00:00]} Nf6 {[%emt 0:00:00]} 2. Nf3 {[%emt 0:00:04]} g6 {[%emt 0:00:07]} 3. Bg5 {[%emt 0:00:04]} Bg7 {[%emt 0:00:02]} 4. Nbd2 {[%emt 0:00:01]} O-O {[%emt 0:00:31]} 5. c3 {[%emt 0:00:08]} h6 {[%emt 0:00:25]} 6. Bh4 {[%emt 0:00:03]} d6 {[%emt 0:00:05]} 7. e4 {[%emt 0:00:03]} c5 {[%emt 0:00:04]} 8. dxc5 {[%emt 0:00:05]} dxc5 {[%emt 0:00:00]} 9. Bc4 {[%emt 0:00:02]} Nc6 {[%emt 0:00:06]} 10. O-O {[%emt 0:00:17] A48: 1 d4 Nf6 2 Nf3 g6: Torre, London and Colle Systems.} Na5 {[%emt 0:00:25]} 11. Be2 {[%emt 0:00:42]} Be6 {[%emt 0:00:26]} 12. Qc2 {[%emt 0:00:10]} Nh5 {[%emt 0:00:07]} 13. Rfd1 {[%emt 0:00:11][%cal Od2c4]} Qc7 {[%emt 0:00:05] [#]} 14. Nb3 $146 {[%emt 0:00:08]} ({Predecessor:} 14. Nf1 Nf4 15. Ne3 Rad8 16. Bf1 {½-½ (16) Neelotpal,D (2477)-Kempinski,R (2595) Hoogeveen 2008}) 14... Nxb3 {[%emt 0:00:39]} 15. axb3 {[%emt 0:00:02]} Nf4 {[%emt 0:00:16]} 16. Bc4 {[%emt 0:01:49]} Bg4 $1 {[%emt 0:00:15]} 17. Bg3 {[%emt 0:02:01][%cal Oe4e5]} Bxf3 {[%emt 0:00:18]} 18. gxf3 {[%emt 0:00:02][%cal Oe4e5]} Be5 {[%emt 0:00:29]} 19. Rd2 {[%emt 0:00:10]} e6 {[%emt 0:04:08]} 20. Rad1 {[%emt 0:01:13]} Rad8 {[%emt 0:00:22]} 21. Qc1 {[%emt 0:00:32] [#] Hoping for Rxd8.} g5 {[%emt 0:00:29]} 22. Rxd8 {[%emt 0:03:35]} Rxd8 {[%emt 0:00:03]} 23. Rd2 {[%emt 0:00:14]} Ng6 {[%emt 0:00:45]} 24. Qd1 {[%emt 0:00:37]} (24. Rxd8+ $17 Qxd8 25. Bxe5 Nxe5 26. Be2) 24... Rxd2 $19 {[%emt 0:00:05]} 25. Qxd2 {[%emt 0:00:00]} Bf4 {[%emt 0:00:50]} 26. Qd1 {[%emt 0:00:37]} h5 {[%emt 0:01:59][%cal Bh6h5,Bh5h4][%mdl 32]} 27. Bf1 {[%emt 0:01:36]} h4 {[%emt 0:01:10]} 28. Bxf4 {[%emt 0:00:04]} Nxf4 {[%emt 0:00:28][%mdl 4096] Endgame KQB-KQN} 29. h3 {[%emt 0:00:03]} a5 {[%emt 0:00:39]} 30. Qd2 {[%emt 0:00:11]} b6 {[%emt 0:01:06]} 31. Qd1 {[%emt 0:00:24]} Kf8 {[%emt 0:00:19]} 32. Qd2 {[%emt 0:00:01]} Ke7 {[%emt 0:00:02]} 33. Qd1 {[%emt 0:00:01]} Qd6 {[%emt 0:00:11]} 34. Qc1 {[%emt 0:00:28]} Kf6 {[%emt 0:00:06]} 35. Qe1 {[%emt 0:00:08]} Ng6 {[%emt 0:00:08]} 36. Qc1 {[%emt 0:00:18]} Nf4 {[%emt 0:00:50]} 37. Qe1 {[%emt 0:00:05]} Qe5 {[%emt 0:00:09]} 38. Qd2 {[%emt 0:00:13]} Ke7 {[%emt 0:00:01] Inhibits Qd8+.} 39. Qd1 {[%emt 0:00:04]} Qb8 {[%emt 0:00:50]} 40. Qa1 {[%emt 0:00:54]} Qd6 {[%emt 0:00:15] White must now prevent ...Qd2.} 41. Qc1 {[%emt 0:00:02] Against Qd2} Qd7 {[%emt 0:00:04]} 42. Kh2 {[%emt 0:00:39]} Kf6 {[%emt 0:01:28]} 43. Kg1 {[%emt 0:00:26]} a4 {[%emt 0:00:37]} 44. bxa4 {[%emt 0:00:35]} Qxa4 {[%emt 0:00:00]} 45. Qd2 {[%emt 0:00:18]} Ke7 {[%emt 0:00:03] Against Qd8+} 46. Kh2 {[%emt 0:00:36]} Qd7 {[%emt 0:00:02]} 47. Qc1 {[%emt 0:00:08]} Qd6 {[%emt 0:00:27] aiming for ...Ne2+.} 48. Kg1 {[%emt 0:00:04]} Kf6 {[%emt 0:00:15]} 49. Qe1 {[%emt 0:00:10]} Kg7 {[%emt 0:00:13]} 50. Qc1 {[%emt 0:00:11]} b5 {[%emt 0:00:16]} (50... Kh7 $17 51. Qe1 b5) 51. Qe1 {[%emt 0:00:27]} (51. Bxb5 $15 Nxh3+ 52. Kg2 Nf4+ 53. Kh1) 51... b4 {[%emt 0:00:06]} 52. Qc1 {[%emt 0:00:56]} b3 {[%emt 0:00:04]} 53. Qe1 {[%emt 0:00:07]} c4 {[%emt 0:00:15]} 54. Bxc4 {[%emt 0:00:27]} Nxh3+ {[%emt 0:00:02]} 55. Kg2 {[%emt 0:00:01]} Nf4+ {[%emt 0:00:02]} 56. Kh1 {[%emt 0:00:10]} Qc5 {[%emt 0:00:50]} 57. Bf1 {[%emt 0:00:35]} Kf6 {[%emt 0:00:17]} 58. Qe3 {[%emt 0:00:20]} Qd6 {[%emt 0:00:15]} 59. Kg1 {[%emt 0:00:52]} e5 {[%emt 0:00:12] And now ...Qd1 would win.} 60. Bc4 {[%emt 0:00:13]} ({White should try} 60. Qe1 $15) 60... Qd1+ {[%emt 0:00:03]} 61. Kh2 {[%emt 0:00:01] [#]} Qc2 {[%emt 0:00:08]} (61... g4 $1 $17 {[%cal Rg4g3] ...g3+ is the strong threat.} 62. fxg4 Qxg4) 62. Qa7 $11 {[%emt 0:00:03][%csl Gc4][%cal Ra7f7] Really sharp! The position is equal.} Ne6 {[%emt 0:00:06]} 63. Bxe6 {[%emt 0:00:16]} fxe6 {[%emt 0:00:03] KQ-KQ} 64. Kg2 {[%emt 0:00:01]} Qxb2 {[%emt 0:00:14]} 65. Qc5 {[%emt 0:00:28]} Qc2 {[%emt 0:00:22]} 66. Qf8+ {[%emt 0:00:04]} Kg6 {[%emt 0:00:01]} 67. Qg8+ {[%emt 0:00:02]} Kf6 {[%emt 0:00:00]} 68. Qf8+ {[%emt 0:00:01]} Kg6 {[%emt 0:00:01]} 69. Qg8+ {[%emt 0:00:00]} Kf6 {[%emt 0:00:00]} 70. Qf8+ {[%emt 0:00:01] Black had all chances to win.  Weighted Error Value: White=0.12 (very precise) /Black=0.12 (very precise)} 1/2-1/2

[Event "MCCT Chessable Masters 2022"]
[Site "Online"]
[Date "2022.05.16"]
[Round "3.4"]
[White "Jones, Gawain C B"]
[Black "Wei, Yi"]
[Result "0-1"]
[ECO "B22"]
[WhiteElo "2669"]
[BlackElo "2727"]
[Annotator "TA"]
[PlyCount "138"]
[EventDate "2022.05.19"]
[EventType "tourn"]
[EventCountry "NET"]
[SourceTitle "playchess.com"]
[Source "ChessBase"]
[SourceQuality "1"]
[TimeControl "900+10"]

{[%evp 14,138,0,0,0,0,0,10,10,10,10,6,2,17,9,11,18,0,0,0,0,-83,0,0,18,18,244,24,22,19,24,0,0,-175,-186,-169,-186,-189,-187,-176,-187,-306,-302,-292,-262,-440,-442,-443,-439,-417,-412,-400,-366,-310,-318,-314,-314,-483,-191,-374,-296,-469,-407,-1410,-1408,-1519,-1691,-1591,-1632,-1574,-1524,-1374,-1482,-1653,-1283,-595,0,-1727,-1542,-1273,-1456,-1636,-1402,-29950,-11724,-29972,-29973,-29974,-29975,-29975,-29976,-29976,-29974,-29972,-29974,-29975,-29976,-29975,-29976,-29975,-12488,-12481,-1617,-12821,-2213,-29949,-29951,-29952,-29951,-29949,-29949,-29946,-29953,-29950,-29954,-29954,-29956,-29954,-29953,-29957,-29960,-29958,-29960,-12803,-12793,-29992,-29993]} 1. e4 {[%emt 0:00:00][%cal Be2e4,Be4e5][%mdl 32]} c5 {[%emt 0:00:00]} 2. c3 {[%emt 0:00:02]} Nf6 {[%emt 0:00:02]} 3. e5 {[%emt 0:00:01]} Nd5 {[%emt 0:00:01]} 4. Nf3 {[%emt 0:00:01]} d6 {[%emt 0:00:02]} 5. d4 {[%emt 0:00:02]} cxd4 {[%emt 0:00:04]} 6. cxd4 {[%emt 0:00:01]} Nc6 {[%emt 0:00:02]} 7. Bc4 {[%emt 0:00:03]} dxe5 {[%emt 0:00:01]} 8. dxe5 {[%emt 0:00:01]} Be6 {[%emt 0:00:01][%cal Od5f4] B22: Sicilian: 2 c3.} 9. O-O {[%emt 0:00:03]} g6 {[%emt 0:00:02]} 10. Ng5 {[%emt 0:00:03] 10.Ng5 scores better than 10.Qe2.} Bg7 {[%emt 0:00:06] The position is equal.} 11. Nxe6 {[%emt 0:00:02]} fxe6 {[%emt 0:00:01]} 12. f4 {[%emt 0:00:24]} Qb6+ {[%emt 0:00:01]} 13. Kh1 {[%emt 0:00:01]} Rd8 {[%emt 0:00:01]} 14. Qe2 {[%emt 0:00:09]} Qc5 {[%emt 0:01:13] [#]} 15. Qe4 $146 {[%emt 0:00:58]} ({Predecessor:} 15. Na3 O-O 16. Nc2 Nd4 17. Nxd4 Qxd4 18. Bxd5 exd5 19. Rd1 Qb4 20. b3 e6 21. Bd2 {½-½ (33) Tomizawa,T (2293)-Huzita,S (2304) ICCF email 2021}) 15... Nxf4 {[%emt 0:02:29] aiming for ...Rd4.} 16. Be3 {[%emt 0:06:29] Prevents Rd4.} ({Of course not} 16. Bxf4 Rd4 17. Qe1 Qxc4 $17) (16. Qxf4 $2 Rf8 17. Qe3 Qxc4 18. Rxf8+ Kxf8 $19) 16... Qxe5 {[%emt 0:00:09]} 17. Qxe5 {[%emt 0:01:08]} ({Don't blunder} 17. Rxf4 $2 Qxe4 18. Rxe4 Rd1+ 19. Bg1 Bxb2 $19) (17. Qxf4 $11 {keeps the balance.} Qxf4 18. Bxf4 Bxb2 19. Nd2 $1 Bxa1 20. Rxa1) 17... Bxe5 {[%emt 0:02:49]} ({Black should try} 17... Nxe5 $17 18. Bb5+ Nc6 19. Bxf4 Bxb2) 18. Bxf4 $11 {[%emt 0:00:03]} Rf8 {[%emt 0:00:20]} 19. Bxe5 {[%emt 0:00:48]} Rxf1+ {[%emt 0:00:03]} 20. Bxf1 {[%emt 0:00:00] This bishop pair is nice.} Rd1 {[%emt 0:00:01][%cal Rd1f1] [#]} 21. Kg1 {[%emt 0:00:14]} Nxe5 {[%emt 0:00:02]} 22. h3 {[%emt 0:01:17] Inhibits Ng4.} Nd3 {[%emt 0:03:49]} 23. g3 $2 {[%emt 0:01:43] White is on the road to losing.} (23. a4 $1 $11 {and White is okay.}) 23... e5 $1 $19 {[%emt 0:01:33][%cal Be6e5,Be5e4,Be4d3][%mdl 32]} ({Worse is} 23... Nxb2 24. a4 $11) 24. Kg2 {[%emt 0:00:33]} e4 {[%emt 0:00:08] White must now prevent ...Ne1+.} 25. Bxd3 {[%emt 0:00:19]} exd3 {[%emt 0:00:04][%mdl 4096] Endgame KRN-KR} 26. Kf2 {[%emt 0:00:01]} a5 {[%emt 0:01:19][%mdl 1024] Black has strong compensation.} 27. a4 {[%emt 0:00:10]} (27. b3 $142) 27... e5 {[%emt 0:00:17]} 28. Ke3 {[%emt 0:00:05]} Ke7 $1 {[%emt 0:00:07]} 29. h4 $2 {[%emt 0:02:32]} (29. Ke4) 29... h5 {[%emt 0:00:11]} 30. Ra3 {[%emt 0:00:42] Nd2 is the strong threat.} Rxb1 {[%emt 0:00:02]} 31. Rxd3 {[%emt 0:00:02]} Rxb2 {[%emt 0:00:29] KR-KR} 32. Rd5 {[%emt 0:00:01]} Rb3+ {[%emt 0:00:01]} 33. Kf2 {[%emt 0:00:09]} Ke6 {[%emt 0:01:12]} 34. Rxa5 {[%emt 0:00:01]} Kf5 {[%emt 0:00:12]} 35. Rc5 {[%emt 0:00:41]} (35. Rd5 {was the only chance.}) 35... Rb4 $2 {[%emt 0:00:02]} (35... Kg4 36. Rxe5 Rf3+ 37. Ke2 Rxg3 38. Re4+ Kh3) 36. Rc7 $2 {[%emt 0:00:29]} (36. a5 {was the only defense.}) 36... Ke4 {[%emt 0:00:04]} 37. Rg7 {[%emt 0:00:10]} (37. a5 {was called for.}) 37... Rb2+ {[%emt 0:00:08]} 38. Kg1 {[%emt 0:00:03]} (38. Ke1 $142 Kf3 39. Rxg6) 38... Kf3 {[%emt 0:01:07]} 39. Rxg6 {[%emt 0:00:02]} e4 {[%emt 0:00:02]} 40. Rf6+ {[%emt 0:00:09]} Kxg3 {[%emt 0:00:02]} 41. Kf1 {[%emt 0:00:01]} Rb4 {[%emt 0:01:36]} 42. a5 {[%emt 0:00:25]} Kxh4 {[%emt 0:00:08] Hoping for ...Kh3.} 43. Rg6 {[%emt 0:00:02]} Rb2 {[%emt 0:00:42]} 44. Re6 {[%emt 0:00:47]} Rb4 {[%emt 0:00:32]} (44... Kg3 $142 45. Rxe4 Rb1+ 46. Ke2 h4 47. Re3+ Kg2) 45. Rg6 $1 {[%emt 0:00:03]} Kh3 {[%emt 0:00:22] And now ...Ra4 would win.} 46. Ke2 {[%emt 0:00:27]} h4 {[%emt 0:00:13] Threatens to win with ...Kh2.} 47. Ke3 {[%emt 0:00:12]} Kh2 {[%emt 0:00:10]} 48. a6 {[%emt 0:00:07]} bxa6 {[%emt 0:00:05]} 49. Rxa6 {[%emt 0:00:01]} h3 {[%emt 0:00:38]} 50. Rg6 {[%emt 0:00:03]} Kh1 {[%emt 0:00:07]} 51. Rg8 {[%emt 0:00:31]} h2 {[%emt 0:00:14]} 52. Rg7 {[%emt 0:01:16]} Rb2 {[%emt 0:00:01]} 53. Kxe4 {[%emt 0:00:12] [#]} Rg2 $1 {[%emt 0:00:02]} 54. Ra7 {[%emt 0:00:01]} Rg3 {[%emt 0:00:07]} 55. Ra2 {[%emt 0:00:19]} Kg1 {[%emt 0:00:07]} 56. Kf4 {[%emt 0:00:02]} Rf3+ {[%emt 0:00:54]} 57. Kxf3 {[%emt 0:00:14]} h1=Q+ {[%emt 0:00:02] KQ-KR} 58. Kg3 {[%emt 0:00:01]} Qh8 {[%emt 0:00:01]} 59. Rg2+ {[%emt 0:00:13]} Kf1 {[%emt 0:00:02]} 60. Rf2+ {[%emt 0:00:01] [#]} Ke1 $1 {[%emt 0:00:01]} 61. Rf5 {[%emt 0:00:16]} Qg7+ {[%emt 0:00:14]} 62. Kf3 {[%emt 0:00:06]} Qd4 {[%emt 0:00:04]} 63. Rf4 {[%emt 0:00:23]} Qd3+ {[%emt 0:00:01]} 64. Kg4 {[%emt 0:00:01]} Ke2 {[%emt 0:00:01]} 65. Rf6 {[%emt 0:00:09]} Qd4+ {[%emt 0:00:11]} 66. Rf4 {[%emt 0:00:05]} Qd7+ {[%emt 0:00:06]} 67. Kg5 {[%emt 0:00:10]} Ke3 {[%emt 0:00:01]} 68. Rf6 {[%emt 0:00:27]} Ke4 {[%emt 0:00:04] ( -> ...Qg7+)} 69. Rf1 {[%emt 0:00:15]} Qb5+ {[%emt 0:00:02] Weighted Error Value: White=0.78/Black=0.28 (precise)} 0-1

[Event "MCCT Chessable Masters 2022"]
[Site "Online"]
[Date "2022.05.16"]
[Round "3.5"]
[White "Anton Guijarro, David"]
[Black "Vidit, Santosh Gujrathi"]
[Result "1/2-1/2"]
[ECO "B14"]
[WhiteElo "2691"]
[BlackElo "2723"]
[Annotator "TA"]
[PlyCount "84"]
[EventDate "2022.05.19"]
[EventType "tourn"]
[EventCountry "NET"]
[SourceTitle "playchess.com"]
[Source "ChessBase"]
[SourceQuality "1"]
[TimeControl "900+10"]

{[%evp 14,84,7,0,0,0,0,3,13,14,26,14,5,4,8,21,34,5,25,22,31,14,14,12,12,12,16,8,12,12,19,3,6,0,0,1,25,0,0,0,12,0,0,0,0,0,0,0,0,0,0,0,2,3,2,2,5,4,5,4,4,7,5,4,13,2,13,1,13,0,0,0,13]} 1. Nf3 {[%emt 0:00:00]} Nf6 {[%emt 0:00:00]} 2. c4 {[%emt 0:00:05]} c5 {[%emt 0:00:02]} 3. Nc3 {[%emt 0:00:02]} Nc6 {[%emt 0:00:02]} 4. e3 {[%emt 0:00:03]} e6 {[%emt 0:00:01]} 5. d4 {[%emt 0:00:07]} d5 {[%emt 0:00:01]} 6. cxd5 {[%emt 0:00:03]} exd5 {[%emt 0:00:01]} 7. Bb5 {[%emt 0:00:04]} cxd4 {[%emt 0:00:01]} 8. exd4 {[%emt 0:00:04]} Bd6 $1 {[%emt 0:00:01] 8...Bd6 scores better than 8...Be7. B14: Caro-Kann: Panov-Botvinnik Attack with 5...e6 and 5...g6.} 9. O-O {[%emt 0:00:03]} O-O {[%emt 0:00:02]} 10. Bg5 {[%emt 0:00:06]} Bg4 {[%emt 0:00:17]} 11. Be2 {[%emt 0:00:08]} Be6 {[%emt 0:01:56]} 12. Re1 {[%emt 0:00:27]} h6 {[%emt 0:00:03]} 13. Bh4 {[%emt 0:00:04]} g5 {[%emt 0:03:13]} 14. Bg3 {[%emt 0:00:03]} Ne4 {[%emt 0:00:19] [#]} 15. Bxd6 $146 {[%emt 0:00:23]} ({Predecessor:} 15. Nxe4 dxe4 16. Ne5 Nxe5 17. dxe5 Bb4 18. Rf1 Qxd1 19. Rfxd1 Rfd8 20. a3 Bd2 21. h3 Bb3 22. Rf1 {0-1 (40) Colon Romero,M-Parma,B San Juan 1969}) 15... Nxd6 {[%emt 0:00:13]} 16. Ne5 {[%emt 0:01:39]} Kg7 {[%emt 0:02:46]} 17. Bf3 {[%emt 0:03:03]} Nf5 {[%emt 0:00:06]} (17... Rc8 {is interesting.} 18. Bxd5 Bxd5 19. Nxd5 Nf5) 18. Nxc6 {[%emt 0:00:04]} bxc6 {[%emt 0:00:00]} 19. Bg4 {[%emt 0:00:03]} Qf6 {[%emt 0:00:20]} 20. Bxf5 {[%emt 0:00:05]} Bxf5 {[%emt 0:00:01]} 21. Qd2 {[%emt 0:00:21]} Rfe8 {[%emt 0:00:06]} 22. h3 {[%emt 0:01:03]} Bg6 {[%emt 0:01:07]} 23. Rac1 {[%emt 0:00:24]} h5 {[%emt 0:00:28]} 24. Re3 {[%emt 0:00:14]} g4 {[%emt 0:01:53]} 25. Rce1 {[%emt 0:01:13]} (25. Rg3 {seems wilder.} gxh3 26. Rf3 h2+ 27. Kxh2 Qh4+ 28. Kg1) 25... Rxe3 {[%emt 0:00:03] The position is equal.} 26. Rxe3 {[%emt 0:00:03]} Rb8 {[%emt 0:00:37]} 27. b3 {[%emt 0:02:06]} c5 {[%emt 0:01:20]} 28. Nxd5 {[%emt 0:05:07]} Qxd4 {[%emt 0:00:03]} 29. Qc3 {[%emt 0:00:01]} Rd8 {[%emt 0:00:58]} 30. Nf4 {[%emt 0:00:09]} Qxc3 {[%emt 0:01:09]} 31. Rxc3 $11 {[%emt 0:00:02][%mdl 4096] Endgame KRB-KRN} Rd1+ {[%emt 0:00:09]} 32. Kh2 {[%emt 0:00:02]} Rd2 {[%emt 0:00:00]} 33. hxg4 {[%emt 0:00:18]} hxg4 {[%emt 0:00:12]} 34. Kg3 {[%emt 0:00:14]} Rxa2 {[%emt 0:00:16]} 35. Rxc5 {[%emt 0:00:05]} Ra3 {[%emt 0:02:03][%cal Ba2a3,Ba3b3,Bb3b7,Bb7e7][%mdl 32]} 36. Kxg4 {[%emt 0:00:26]} Rxb3 {[%emt 0:00:01]} 37. Ra5 $1 {[%emt 0:00:03]} Rb7 {[%emt 0:00:02]} 38. f3 {[%emt 0:00:04]} Re7 {[%emt 0:00:10]} 39. g3 {[%emt 0:00:43]} f6 {[%emt 0:00:13]} 40. Nd5 {[%emt 0:01:02]} Rd7 {[%emt 0:00:08]} 41. Ne3 {[%emt 0:00:09]} Bd3 {[%emt 0:00:13]} 42. Nf5+ {[%emt 0:00:46]} Bxf5+ {[%emt 0:00:12] A balanced but interesting game.  Weighted Error Value: White=0.04 (flawless) /Black=0.04 (flawless)} 1/2-1/2